Cogmind - Beta 11.1 @@@ ROGUE MODE // 2022.05.10 @ 20:25:34 Player: Stryker Result: Self-destructed Performance ------------- Evolutions (8) 4000 Regions Visited (29) 5800 Robots Destroyed (242) 1210 Value Destroyed (11461) 11461 Prototype IDs (80) 1600 Alien Tech Used (2) 400 Bonus (5437) 5437 TOTAL SCORE: 29908 Bonus ------- High Alert Combat Kills 126 Follower Combat Kills 1601 Met Data Miner 300 Met Zhirov 300 Met Warlord at Base 500 MAIN.C Attacked Warlord 500 Warlord Defense Kill 134 A7 Reached Mainframe 300 Met Warlord at Research 2000 Friendly Fire -324 Cogmind --------- Core Integrity 1132/1450 Matter 300/300 Energy 100/100 System Corruption 1% Temperature Cool (0) Movement Immobile (Siege) Location -2/Research Parts ------- > --- POWER (2) -------- (None) > --- PROPULSION (6) --- Biometal Heavy Treads Biometal Heavy Treads Biometal Heavy Treads > --- UTILITY (11) ----- Advanced Coolant Injector Huge Storage Unit Machine Analyzer Experimental Signal Interpreter Experimental Terrain Scan Processor Hardened Medium Armor Plating Centrium Medium Armor Plating AEGIS Remote Shield Improved Hacking Suite Improved Hacking Suite Improved Hacking Suite > --- WEAPON (4) ------- Nova Cannon Cooled Nova Cannon Hardcell Cannon Compact Tesla Bomb Launcher > --- INVENTORY (25) --- Centrium Heavy Treads Biometal Heavy Treads Advanced Coolant Injector Long-range Sensor Array Makeshift Terrain Scanner Experimental Target Analyzer Precision Matter Filter Improved Kinecellerator Advanced Transmission Jammer Experimental Cloaking Device Centrium Light Armor Plating Advanced Thermal Shield EM Disruption Field System Mapper Advanced System Shield System Purifier Dimensional Node Initializer Advanced Remote Datajack Chainsword Peak State ------------ > --- POWER ------------ Cooled Antimatter Reactor Quantum Reactor > --- PROPULSION ------- Biometal Heavy Treads Biometal Heavy Treads Biometal Heavy Treads > --- UTILITY ---------- Huge Storage Unit Machine Analyzer Experimental Signal Interpreter Experimental Terrain Scan Processor Advanced Transmission Jammer Centrium Light Armor Plating Centrium Medium Armor Plating AEGIS Remote Shield Improved Hacking Suite Improved Hacking Suite Improved Hacking Suite > --- WEAPON ----------- Enhanced Quantum Rifle Cooled Nova Cannon Railgun Hypervelocity Railgun > --- INVENTORY -------- Centrium Heavy Treads Biometal Heavy Treads Advanced Coolant Injector Experimental Matter Compressor Long-range Sensor Array Makeshift Terrain Scanner Experimental Target Analyzer Precision Matter Filter Improved Kinecellerator Experimental Cloaking Device Centrium Medium Armor Plating Advanced Focal Shield Advanced Thermal Shield EM Disruption Field System Mapper Advanced System Shield System Purifier Dimensional Node Initializer Nova Cannon Hardcell Cannon Compact Tesla Bomb Launcher Advanced Remote Datajack Chainsword [Rating: 198] Favorites ----------- Power Light Antimatter Reactor Engine Deuterium Engine Power Core Neutrino Core Reactor Light Antimatter Reactor Propulsion Light Treads Treads Light Treads Leg Flexi-carbon Leg Wheel Compact Wheel Hover Unit Improved Airjet Utility Improved Hacking Suite Device Improved Sensor Array Storage Huge Storage Unit Processor Advanced Terrain Scan Processor Hackware Improved Hacking Suite Protection Hardened Medium Armor Plating Weapon Gauss Rifle Energy Gun Advanced Variable Charge Gun Energy Cannon Cooled Nova Cannon Ballistic Gun Gauss Rifle Ballistic Cannon Hardcell Cannon Launcher Improved Proton Missile Launcher Special Weapon Mining Laser Slashing Weapon Chainsword Special Melee Weapon Improved Datajack Build | -11 -10 -9 -9 -8 -7 -7 -7 -7 -6 -6 -6 -6 -6 -6 -5 -5 -5 -5 -4 -4 -4 -4 -4 -4 -4 -3 -3 -3 -2 ------- Run | Scr Mat Mat Min Mat Fac Low Low Dat Pro Fac Ext Cet Arc Hub Fac Upp Upp War Pro Fac Was Fac Upp Upp Zhi Pro Res Tes Res Slots Evolved 16 | . . 2 . 2 2 . . . . 2 . . . . 2 . . . . 2 . . . . . . 2 . 2 Power 1 | . . . . . . . . . . . . . . . 1 . . . . . . . . . . . . . . Propulsion 4 | . . 1 . 1 1 . . . . 1 . . . . . . . . . . . . . . . . . . . Utility 9 | . . 1 . 1 1 . . . . 1 . . . . 1 . . . . 1 . . . . . . 2 . 1 Weapon 2 | . . . . . . . . . . . . . . . . . . . . 1 . . . . . . . . 1 Parts Attached 615 | 3 14 19 8 9 23 24 16 3 15 13 30 11 9 32 19 29 8 12 28 25 8 77 12 6 7 7 48 47 53 Power 32 | . 4 2 . 1 2 . 1 . 1 1 1 1 1 . 1 2 . 1 . 3 2 2 1 . 1 . 1 2 1 Engine 11 | . 3 2 . 1 2 . . . 1 . 1 . . . . . . . . . . . 1 . . . . . . Core 8 | . 1 . . . . . 1 . . 1 . . 1 . 1 2 . . . 1 . . . . . . . . . Reactor 13 | . . . . . . . . . . . . 1 . . . . . 1 . 2 2 2 . . 1 . 1 2 1 Propulsion 88 | 1 2 5 2 5 7 1 1 . . 3 13 3 4 2 3 2 2 2 4 3 1 9 . 1 1 . 5 5 1 Treads 55 | . 1 2 2 2 2 1 1 . . 1 9 2 2 2 . 2 2 . 1 2 1 7 . 1 1 . 5 5 1 Leg 5 | . . 1 . . . . . . . . . . . . 1 . . . 2 . . 1 . . . . . . . Wheel 26 | 1 1 2 . 3 4 . . . . 2 4 1 2 . 2 . . 1 1 1 . 1 . . . . . . . Hover 2 | . . . . . 1 . . . . . . . . . . . . 1 . . . . . . . . . . . Flight . | . . . . . . . . . . . . . . . . . . . . . . . . . . . . . . Utility 362 | 2 4 7 3 2 10 16 10 2 10 7 12 3 3 18 11 17 6 6 16 12 2 52 8 3 3 6 35 32 44 Device 225 | 2 1 . 2 . 3 10 8 1 8 4 4 . 2 10 5 11 4 3 9 7 2 39 5 2 . 4 22 23 34 Storage 13 | . 3 3 1 1 . . . . . . . . 1 . 1 . . . . 1 . . . . 1 . . . 1 Processor 8 | . . . . 1 1 1 . . . 1 . . . . . . . . . . . 1 . . . . . 2 1 Hackware 5 | . . . . . . . . . . . . . . . 1 . . . 1 . . . . . . . 2 1 . Protection 111 | . . 4 . . 6 5 2 1 2 2 8 3 . 8 4 6 2 3 6 4 . 12 3 1 2 2 11 6 8 Artifact . | . . . . . . . . . . . . . . . . . . . . . . . . . . . . . . Weapon 133 | . 4 5 3 1 4 7 4 1 4 2 4 4 1 12 4 8 . 3 8 7 3 14 3 2 2 1 7 8 7 Energy Gun 15 | . . 1 1 . . . . . . . . 2 . 1 . . . . 1 1 . 2 . . 1 . 3 1 1 Energy Cannon 23 | . 1 2 . . . . . . . 1 . . . 2 . 1 . 1 . 3 . 5 1 1 . . 3 1 1 Ballistic Gun 47 | . 2 2 1 1 2 4 1 1 2 1 3 2 . 4 2 5 . 1 4 1 2 2 . . . . . 3 1 Ballistic Cannon 11 | . . . 1 . . . . . . . . . . . . . . . . . . 5 . 1 . . 1 2 1 Launcher 11 | . . . . . . 1 2 . . . 1 . . . . . . . 3 . . . 1 . . 1 . . 2 Special Weapon 3 | . 1 . . . . . . . . . . . . 2 . . . . . . . . . . . . . . . Impact Weapon . | . . . . . . . . . . . . . . . . . . . . . . . . . . . . . . Slashing Weapon 22 | . . . . . 1 2 1 . 2 . . . 1 3 2 2 . 1 . 2 1 . 1 . 1 . . 1 1 Piercing Weapon . | . . . . . . . . . . . . . . . . . . . . . . . . . . . . . . Special Melee Weapon 1 | . . . . . 1 . . . . . . . . . . . . . . . . . . . . . . . . Unidentified Prototypes 22 | . . 1 . 1 1 . . . . . . 2 . . . . . 4 1 . 1 . . . 4 . 1 5 1 Corrupted Parts 2 | . . . . . . . . . . . . . . . . . . . 2 . . . . . . . . . . System Corruption 15 | . . . . . . . . . . . . . . . . . . . 15 . . . . . . . . . . Parts Lost 43 | . 2 1 . . . 2 2 . . 1 . 1 2 3 . . . . 5 4 . 7 . . . . 4 1 8 Power 6 | . . . . . . . 1 . . . . . . . . . . . . 1 . 2 . . . . . . 2 Propulsion 17 | . 1 . . . . 1 1 . . . . 1 2 3 . . . . 4 1 . 2 . . . . 1 . . Utility 13 | . . 1 . . . 1 . . . 1 . . . . . . . . 1 2 . 1 . . . . 2 . 4 Weapon 7 | . 1 . . . . . . . . . . . . . . . . . . . . 2 . . . . 1 1 2 Highest Loss Streak 5 | . 1 1 . . . 2 1 . . 1 . 1 1 1 . . . . 2 3 . 5 . . . . 1 1 4 To Critical Strikes . | . . . . . . . . . . . . . . . . . . . . . . . . . . . . . . Average Slot Usage (%) 95 | . 99 99 100 100 99 100 100 100 100 100 99 100 99 99 98 100 100 97 93 97 95 93 91 94 91 94 89 85 85 Engine 2 | . 12 8 11 9 7 7 1 . . 2 . 2 . . . . . . . . . . 2 5 2 . . . . Core 2 | . 1 2 . . . . 5 7 6 3 5 . 3 6 10 11 11 7 . . 5 3 . . . . . . . Reactor 3 | . . . . . . . . . . . . 3 2 . . . . 1 5 8 5 6 5 5 7 10 9 9 8 Treads 19 | . 11 16 22 18 22 23 23 23 23 26 25 23 27 25 17 17 17 17 12 10 13 21 26 26 26 26 19 14 13 Leg 1 | . 6 5 . . . . . . . . . . . . 4 5 5 5 9 10 2 . . . . . . . . Wheel 8 | . 9 11 11 18 15 15 15 15 15 13 13 16 11 13 11 11 11 10 10 9 10 3 . . . . . . . Device 9 | . 14 7 10 9 6 13 14 14 14 12 3 . 1 9 10 10 10 8 4 8 10 8 9 8 5 9 7 8 11 Storage 6 | . 14 11 11 9 7 7 7 7 7 6 6 6 6 6 5 5 5 5 5 5 5 5 5 5 5 5 4 4 4 Processor 14 | . . . . 9 14 14 15 15 15 20 20 20 20 20 17 17 17 17 17 15 15 15 15 15 15 15 14 14 13 Hackware 6 | . . . . . . . . . . . . . . . 4 5 5 5 5 10 10 10 10 10 10 10 18 19 13 Protection 3 | . . 14 11 9 7 1 . . . . 9 13 11 3 . . . 1 4 1 . 1 . 1 2 . 1 . 4 Energy Gun 1 | . . 1 11 7 . . . . . . . 3 . . 5 1 . . . 4 . . . . 1 5 2 1 3 Energy Cannon 1 | . 4 7 . . . . . . . 2 . . . 1 . . . 3 . 2 5 2 . 2 2 . . 2 4 Ballistic Gun 9 | . 22 11 10 10 13 12 12 7 12 7 12 8 9 7 1 6 11 6 9 6 6 8 10 7 5 5 4 5 6 Naked Turns . | . . . . . . . . . . . . . . . . . . . . . . . . . . . . . . Heaviest Build 175 | 15 52 69 66 106 124 121 123 103 115 126 126 134 134 111 134 134 120 135 151 159 128 145 136 138 140 138 142 149 175 Greatest Support 230 | 20 20 10 10 26 26 22 22 22 22 28 30 106 136 20 32 32 32 32 32 32 32 182 175 178 178 178 205 230 225 Greatest Overweight (x) 13 | 1 5 6 6 5 9 5 5 4 5 5 6 6 13 5 6 4 3 4 4 4 3 3 . . 1 . 1 1 . Average Overweight (x) 2 | . 2 5 5 4 4 4 4 4 4 3 3 4 5 5 4 3 3 3 3 3 3 1 . . . . . . . Largest Inventory Capacity 25 | 8 20 25 20 25 25 25 25 25 25 25 25 25 25 25 25 25 25 25 25 25 25 25 25 25 25 25 25 25 25 Average Capacity 24 | 8 16 20 20 24 25 25 25 25 25 25 25 25 25 25 25 25 25 25 25 25 25 25 25 25 25 25 25 25 25 Most Carried 25 | 8 20 20 20 25 25 25 25 24 25 25 25 25 25 25 25 25 25 25 25 25 25 25 25 25 25 25 25 25 25 Average Carried 23 | 6 13 19 19 23 24 24 24 24 24 24 25 24 24 24 24 24 25 24 24 24 24 24 24 25 24 24 24 24 24 Final Capacity 25 | 8 20 20 20 25 25 25 25 25 25 25 25 25 25 25 25 25 25 25 25 25 25 25 25 25 25 25 25 25 25 Final Carried 25 | 8 20 20 20 25 25 25 24 24 25 25 25 25 25 25 25 25 25 25 25 25 25 25 25 25 25 25 25 25 21 Class Distribution -------------------- 29% | Scavenger-Mutant 22% | Scavenger-Skirmisher 14% | Scavenger-Assassin 11% | Mutant 6% | Hacker-Mutant 5% | Hacker-Skirmisher 3% | Commander-Mutant Dominant Class ---------------- Mutant | -10/Materials Mutant | -9/Materials Mutant | -9/Mines Scavenger-Mutant | -8/Materials Scavenger-Mutant | -7/Factory Scavenger-Skirmisher | -7/Lower Caves Scavenger-Skirmisher | -7/Lower Caves Scavenger-Mutant | -7/Data Miner Scavenger-Skirmisher | -6/Proximity Caves Scavenger-Assassin | -6/Factory Commander-Mutant | -6/Extension Scavenger-Mutant | -6/Cetus Scavenger-Mutant | -6/Archives Scavenger-Assassin | -6/Hub_04(d) Scavenger-Assassin | -5/Factory Scavenger-Skirmisher | -5/Upper Caves Scavenger-Skirmisher | -5/Upper Caves Scavenger-Mutant | -5/Warlord Scavenger-Skirmisher | -4/Proximity Caves Scavenger-Assassin | -4/Factory Scavenger-Assassin | -4/Waste Scavenger-Mutant | -4/Factory Scavenger-Assassin | -4/Upper Caves Scavenger-Skirmisher | -4/Upper Caves Scavenger-Mutant | -4/Zhirov Scavenger-Mutant | -3/Proximity Caves Hacker-Mutant | -3/Research Hacker-Mutant | -3/Testing Hacker-Skirmisher | -2/Research Resources | -11 -10 -9 -9 -8 -7 -7 -7 -7 -6 -6 -6 -6 -6 -6 -5 -5 -5 -5 -4 -4 -4 -4 -4 -4 -4 -3 -3 -3 -2 ----------- Run | Scr Mat Mat Min Mat Fac Low Low Dat Pro Fac Ext Cet Arc Hub Fac Upp Upp War Pro Fac Was Fac Upp Upp Zhi Pro Res Tes Res Matter Collected 13633 | 266 457 635 156 210 197 609 286 . 289 142 814 145 391 541 322 422 100 446 645 332 163 1428 306 182 390 112 1291 1144 1212 Remotely . | . . . . . . . . . . . . . . . . . . . . . . . . . . . . . . Salvage Created 13274 | 145 479 726 420 472 147 391 120 . 22 142 365 85 372 402 322 368 106 49 1317 570 299 1511 281 122 343 104 1081 1044 1469 Parts 589 | 8 19 42 20 26 12 12 6 . 4 8 16 4 13 20 15 10 7 . 55 34 3 84 7 2 2 2 52 46 60 Haulers Intercepted 4 | . 1 . . 2 1 . . . . . . . . . . . . . . . . . . . . . . . . Recyclers Shooed 11 | . 1 2 . 1 . . . . . . 2 . . 1 . 1 . . 2 . . 1 . . . . . . . Parts Field Recycled . | . . . . . . . . . . . . . . . . . . . . . . . . . . . . . . Retrieved Matter . | . . . . . . . . . . . . . . . . . . . . . . . . . . . . . . Parts Self-Destructed 156 | . . . . . . 11 5 . 8 . . . . . . 15 6 65 37 . . . 7 1 1 . . . . Prevented 26 | . . . . . . . . . . . . . . . . . . 5 19 . . . . . . 2 . . . Kills | -11 -10 -9 -9 -8 -7 -7 -7 -7 -6 -6 -6 -6 -6 -6 -5 -5 -5 -5 -4 -4 -4 -4 -4 -4 -4 -3 -3 -3 -2 ------- Run | Scr Mat Mat Min Mat Fac Low Low Dat Pro Fac Ext Cet Arc Hub Fac Upp Upp War Pro Fac Was Fac Upp Upp Zhi Pro Res Tes Res Combat Hostiles Destroyed 195 | . 10 15 5 6 1 8 6 . 1 2 8 2 3 7 1 2 2 1 21 10 . 28 . 3 . 1 17 12 23 Guns 128 | . 6 13 5 6 1 6 1 . 1 2 8 2 3 7 1 2 2 1 12 10 . 17 . 3 . . 8 6 5 Cannons 43 | . 4 2 . . . . . . . . . . . . . . . . . . . 11 . . . . 9 6 11 AOE 17 | . . . . . . 2 5 . . . . . . . . . . . 4 . . . . . . . . . 6 Classes Destroyed 21 | 2 5 2 1 . . 2 . . . 1 1 . 1 . . 2 . . 1 1 . . . . . . . . 2 Worker 7 | . 1 1 . . 1 . . . . 1 . . . . . . . . . . . 1 . . . . 1 1 . Builder 9 | . . . . . . . . . . . . . . . . . . . 1 . . 5 . . . . 2 1 . Tunneler 2 | 2 . . . . . . . . . . . . . . . . . . . . . . . . . . . . . Hauler 4 | . 1 . . 2 1 . . . . . . . . . . . . . . . . . . . . . . . . Recycler 11 | 1 . 2 3 1 . . . . . . . . . . 2 . . . 1 . . . . . . . . 1 . Mechanic 1 | . . 1 . . . . . . . . . . . . . . . . . . . . . . . . . . . Operator 5 | . . . . . . . . . . . . . 4 . . . . . . 1 . . . . . . . . . Watcher 8 | . 1 1 . . . . . . . . . 1 . . . . . . 2 . . 1 . . . . 1 . 1 Swarmer 47 | . 2 7 . 2 . 3 . . 1 . 2 2 . . . . 1 . 12 4 . 4 . 1 . . . . 6 Grunt 69 | . 8 5 4 3 . 3 5 . . 1 3 . . 5 . . . 1 5 3 . 9 . 1 . . 4 5 4 Brawler 2 | . . . 1 . . . . . . . . . . . . 1 . . . . . . . . . . . . . Duelist 5 | . . . . . . 1 . . . . . . . . . . . . 1 . . 1 . . . . 1 . 1 Sentry 24 | . . 3 . 1 1 . . . . . 1 . 3 1 . . 1 . 3 2 . 3 . 1 . 1 2 . 1 Demolisher 3 | . . . . . . . . . . . 1 . . . . . . . . . . . . . . . . . 2 Hunter 14 | . . . . . . 1 1 . . . 1 . . . 1 . . . . . . . . . . . 4 2 4 Programmer 24 | . . . . . . . . . . 1 . . . 1 . . . . . . . 11 . . . . 6 5 . Heavy 1 | . . . . . . . . . . . . . . . . . . . . 1 . . . . . . . . . Striker 4 | . . . . . . . . . . . . . . . . . . . . . . . . . . . . . 4 Executioner 1 | . . . . . . . . . . . . . . . . . . . . . . . . . . . . . 1 Packrat 2 | . . . . . . . . . . . . . . . . 2 . . . . . . . . . . . . . Samaritan 4 | . . . . . . . . . . . . . . . . 1 . . . . . . 3 . . . . . . Mutant 1 | . . . . . . . . . . . . . . . . 1 . . . . . . . . . . . . . Best Kill Streak 12 | 2 3 7 2 3 2 4 4 . 1 2 3 2 2 3 2 1 2 1 5 6 . 12 . 3 . 1 7 4 11 Combat Bots Only 11 | . 2 7 2 3 1 4 4 . 1 2 3 2 1 3 1 1 2 1 5 6 . 8 . 3 . 1 6 4 11 Max Kills in Single Turn 4 | 1 1 1 1 1 1 2 1 . 1 2 1 2 1 1 1 1 1 1 3 1 . 4 1 1 . 1 2 1 2 Gunslinging 1 | . . . . . . . . . . 1 . 1 . . . . . . 1 . . . . . . . . . . Exploded 3 | . . . . . . 1 1 . . . . . . . . . . . 3 . . . . . . . . . 2 Melee . | . . . . . . . . . . . . . . . . . . . . . . . . . . . . . . Uniques/NPCs Destroyed . | . . . . . . . . . . . . . . . . . . . . . . . . . . . . . . Combat | -11 -10 -9 -9 -8 -7 -7 -7 -7 -6 -6 -6 -6 -6 -6 -5 -5 -5 -5 -4 -4 -4 -4 -4 -4 -4 -3 -3 -3 -2 -------- Run | Scr Mat Mat Min Mat Fac Low Low Dat Pro Fac Ext Cet Arc Hub Fac Upp Upp War Pro Fac Was Fac Upp Upp Zhi Pro Res Tes Res Damage Taken 20616 | . 716 479 207 280 120 771 150 . 22 163 1112 139 823 933 146 233 110 395 1481 767 . 3564 . 245 . 63 2276 1162 4259 Core 1444 | . 154 65 . 18 16 49 . . . 20 81 . 29 88 16 42 . 59 86 61 . 128 . 15 . . 132 67 318 Absorbed by Shields 1829 | . . . . . . 116 59 . 6 15 136 10 . . . . . . . . . 45 . . . . . . 1442 Reduced by Siege Mode 929 | . . . . . . . . . . . . . . . . . . . . . . 92 . 10 . . 266 103 458 Regen/Repaired (Parts) 699 | . . 74 . . . . . . . . . . . . 233 . . . . . . 392 . . . . . . . Core Remaining (%) 80 | 100 38 . 83 96 . . . . 90 . . . . 74 . . . . 79 . . . . . . 77 . 84 . Volleys Fired 846 | 12 66 44 19 30 12 29 13 . 3 12 44 9 33 49 5 16 5 19 62 27 . 96 4 13 . 15 68 69 72 Largest 4 | 2 2 2 2 2 2 2 1 . 2 2 2 2 2 2 2 2 2 2 2 3 . 3 1 3 . 1 3 3 4 Hottest 340 | 40 100 84 89 103 53 64 39 . 50 65 55 50 53 80 108 108 58 98 129 207 . 340 105 135 . 80 336 214 293 Shots Fired 1695 | 24 131 88 38 60 24 55 13 . 6 19 74 16 66 81 10 30 10 31 92 66 . 214 4 27 . 15 159 137 205 Gun 1226 | 24 102 61 38 60 24 52 2 . 6 14 74 14 66 69 10 29 10 24 70 60 . 137 . 14 . 8 102 66 90 Cannon 413 | . 28 27 . . . . . . . 5 . . . 10 . 1 . 7 . 6 . 77 4 13 . . 57 71 107 Launcher 53 | . . . . . . 3 11 . . . . 2 . . . . . . 22 . . . . . . 7 . . 8 Special 3 | . 1 . . . . . . . . . . . . 2 . . . . . . . . . . . . . . . Kinetic 1152 | 24 102 57 19 30 24 52 2 . 6 14 74 14 66 65 5 19 10 24 67 40 . 167 . 21 . . 100 68 82 Thermal 476 | . 29 31 19 30 . . . . . 5 . . . 14 5 11 . 7 3 26 . 47 4 6 . 8 47 69 115 Explosive 14 | . . . . . . 3 11 . . . . . . . . . . . . . . . . . . . . . . Electromagnetic 51 | . . . . . . . . . . . . 2 . . . . . . 22 . . . . . . 7 12 . 8 Robot Hit Streak 24 | 5 8 15 12 13 7 7 7 . 1 4 13 8 16 19 24 10 8 11 8 14 . 12 3 12 . 4 24 18 19 Robot Miss Streak 5 | 2 4 3 2 3 2 2 2 . 5 3 4 1 2 1 . 2 1 3 4 4 . 3 1 1 . 1 5 2 3 Penetration Max 2 | . . . 1 . 1 . . . . . 1 . 1 . . 1 . . . . . 2 . 1 . . 1 1 1 Secondary Targets 17 | . . . . 2 . . . . . 1 6 1 . 1 . . 1 . 3 2 . . . . . . . . . Max Gunslinging Chain 1 | . . . . 1 . . . . . 1 1 1 . 1 . . 1 . 1 1 . . . . . . . . . Shots Hit Robots 1101 | 14 68 61 30 40 18 39 8 . 1 10 57 11 61 63 9 25 9 15 57 39 3 125 8 15 11 2 97 72 133 Core Hits 487 | 4 21 27 11 13 6 16 10 . 1 3 24 12 20 20 6 12 4 7 34 23 1 63 5 7 5 1 45 29 57 Critical Kills 21 | . . . . . . . . . . 1 1 . 1 1 . . . 1 . 3 . 3 . . . . 3 3 4 Critical Parts Destroyed 19 | . . . . 1 . . . . . 1 2 . . . . . . . 1 . . 4 . . . . 4 5 1 Critical Strikes 63 | . . 2 3 4 . . . . . 2 3 . 2 1 . . . 1 1 3 . 9 . . . . 16 9 7 Burn 8 | . . 1 3 3 . . . . . . . . . . . . . . . . . . . . . . . 1 . Destroy 42 | . . 1 . 1 . . . . . 2 3 . 1 1 . . . 1 1 3 . 7 . . . . 7 8 6 Blast 12 | . . . . . . . . . . . . . . . . . . . . . . 2 . . . . 9 . 1 Sever 1 | . . . . . . . . . . . . . 1 . . . . . . . . . . . . . . . . Melee Attacks 97 | . . . . . 2 5 1 . 2 4 . . 11 9 10 5 . 2 . 3 3 2 7 . 11 . . 15 5 Impact . | . . . . . . . . . . . . . . . . . . . . . . . . . . . . . . Slashing 96 | . . . . . 1 5 1 . 2 4 . . 11 9 10 5 . 2 . 3 3 2 7 . 11 . . 15 5 Piercing . | . . . . . . . . . . . . . . . . . . . . . . . . . . . . . . Sneak Attacks 18 | . . . . . 1 . . . . 1 . . 6 2 1 2 . . . . . . 4 . . . . . 1 Combat Hostiles . | . . . . . . . . . . . . . . . . . . . . . . . . . . . . . . Follow-up Attacks . | . . . . . . . . . . . . . . . . . . . . . . . . . . . . . . Damage Inflicted 33446 | 181 981 1023 496 824 343 951 980 . 20 275 1282 400 1748 1349 298 729 190 284 2447 1145 97 4455 504 459 734 123 3192 2142 5794 Guns 18268 | 181 718 620 496 824 343 569 33 . 20 202 1263 210 1050 1131 220 555 190 284 1082 1145 . 2733 . 279 . . 1932 725 1463 Cannons 7857 | . 263 403 . . . . . . . . . . . . . . . . . . . 1382 75 180 . . 1215 1406 2933 Explosions 4432 | . . . . . . 156 947 . . . . 190 . . . . . . 1365 . . 324 . . . 123 . . 1327 Melee 2789 | . . . . . . 226 . . . 73 . . 698 218 78 174 . . . . 97 . 429 . 734 . . . 62 Ramming 100 | . . . . . . . . . . . 19 . . . . . . . . . . 16 . . . . 45 11 9 Kinetic 17865 | 181 718 571 221 358 343 569 33 . 20 202 1263 210 1050 1131 56 369 190 284 1052 798 . 3505 . 459 . . 2315 736 1231 Thermal 8933 | . 263 452 275 466 . . . . . . . . . . 164 186 . . 141 347 . 934 75 . . . 601 1395 3634 Explosive 1103 | . . . . . . 156 947 . . . . . . . . . . . . . . . . . . . . . . Electromagnetic 2656 | . . . . . . . . . . . . 190 . . . . . . 1254 . . . . . . 123 231 . 858 Impact . | . . . . . . . . . . . . . . . . . . . . . . . . . . . . . . Slashing 2789 | . . . . . . 226 . . . 73 . . 698 218 78 174 . . . . 97 . 429 . 734 . . . 62 Piercing . | . . . . . . . . . . . . . . . . . . . . . . . . . . . . . . Highest Corruption 15 | . 2 . . . . . . . . 1 1 1 1 5 . . . . 15 . . 6 6 . . 1 4 4 1 Average Corruption 1 | . 1 . . . . . . . . 1 1 1 1 2 . . . . 14 . . 3 4 . . 1 3 1 1 Corruption Purged 12 | . . . . . . . . . . . . . . . . . . . . . . 2 6 . . . . 4 . Corruption Blocked . | . . . . . . . . . . . . . . . . . . . . . . . . . . . . . . Effects 67 | . 8 . . . . . . . . 3 6 2 4 7 . . . . 1 . . 16 4 . . . 9 4 3 Message Errors 17 | . 2 . . . . . . . . 1 3 . 2 1 . . . . 1 . . 5 1 . . . 1 . . Matter Fused 20 | . 1 . . . . . . . . 1 1 1 1 2 . . . . . . . 4 3 . . . 2 2 2 Heat Flow Errors 5 | . 2 . . . . . . . . . 1 . . . . . . . . . . 2 . . . . . . . Energy Discharges 7 | . 2 . . . . . . . . . . . 1 1 . . . . . . . . . . . . 1 2 . Parts Rejected 1 | . . . . . . . . . . . . . . . . . . . . . . . . . . . . . 1 Data Loss (minor) 9 | . 1 . . . . . . . . 1 . 1 . 2 . . . . . . . 2 . . . . 2 . . Data Loss (major) 2 | . . . . . . . . . . . 1 . . 1 . . . . . . . . . . . . . . . Misfires 2 | . . . . . . . . . . . . . . . . . . . . . . 2 . . . . . . . Alerts 1 | . . . . . . . . . . . . . . . . . . . . . . . . . . . 1 . . Weapon Failures 3 | . . . . . . . . . . . . . . . . . . . . . . 1 . . . . 2 . . Overload Shots 2 | . . . . . . . . . . . . . . . . . . . . . . 1 . . . . 1 . . Overflow Damage 932 | . 5 . . . . 74 64 . . 33 . . 196 . . 55 . . 55 . . 75 119 25 4 . 74 9 144 Projectiles 284 | . 5 . . . . . . . . . . . . . . . . . . . . 38 32 25 . . 74 9 101 Explosions 167 | . . . . . . . 64 . . . . . . . . . . . 55 . . 37 . . . . . . 11 Melee 481 | . . . . . . 74 . . . 33 . . 196 . . 55 . . . . . . 87 . 4 . . . 32 Knockbacks 28 | . . . . . . . . . . . . . . . . . . . . . . 8 . 2 . . 10 1 7 Impact 1 | . . . . . . . . . . . . . . . . . . . . . . . . . . . 1 . . Kinetic 27 | . . . . . . . . . . . . . . . . . . . . . . 8 . 2 . . 9 1 7 Secondary . | . . . . . . . . . . . . . . . . . . . . . . . . . . . . . . Self-Inflicted Damage 215 | . . . . . . 28 14 . . . 9 21 . . . . . . 15 . . . . . . 6 . . 122 Shots 12 | . . . . . . 1 1 . . . . 1 . . . . . . 1 . . . . . . 1 . . 7 Rammed 8 | . . . . . . . . . . . 2 . . . . . . . . . . 1 . . . . 2 2 1 Targets Rammed 9 | . . . . . . . . . . . 2 . . . . . . . . . . 1 . . . . 3 2 1 Kicked . | . . . . . . . . . . . . . . . . . . . . . . . . . . . . . . Crushed 1 | . . . . . . . . . . . . . . . . . . . . . . . . . . . 1 . . Highest Temperature 404 | . 247 250 287 23 44 290 9 . 18 65 89 12 83 66 66 382 8 150 142 222 . 375 123 404 . 6 390 186 192 Average Temperature 82 | . 65 74 97 9 14 90 4 . 10 22 21 4 31 18 27 140 4 41 31 104 . 124 50 129 . 3 120 103 64 Received Heat Transfer 3822 | . 270 138 102 153 36 326 85 . . 54 295 18 180 375 . 9 9 93 316 66 . 612 . 48 . 9 379 57 192 Effects 9 | . . . . . . . . . . . . . . . . . . . . . . 7 . 1 . . 1 . . Shutdowns 1 | . . . . . . . . . . . . . . . . . . . . . . 1 . . . . . . . Energy Bleed 5 | . . . . . . . . . . . . . . . . . . . . . . 4 . . . . 1 . . Interference 2 | . . . . . . . . . . . . . . . . . . . . . . 2 . . . . . . . Short Circuit 1 | . . . . . . . . . . . . . . . . . . . . . . . . 1 . . . . . Siege Activations 28 | . . . . . . . . . . . . . . . . . . . . . . 8 . 1 . . 6 5 8 Total Turns 684 | . . . . . . . . . . . . . . . . . . . . . . 159 . 30 . . 164 100 231 Longest Duration 57 | . . . . . . . . . . . . . . . . . . . . . . 40 . 30 . . 48 38 57 Robots Corrupted 9 | . . . . . . . . . . . . . . . . . . . 7 . . . . . . 1 . . 1 Combat Hostiles 7 | . . . . . . . . . . . . . . . . . . . 5 . . . . . . 1 . . 1 Parts Fried 16 | . . . . . . . . . . . . 1 . . . . . . 11 . . . . . . 1 . . 3 Impact Corruptions . | . . . . . . . . . . . . . . . . . . . . . . . . . . . . . . Robots Melted . | . . . . . . . . . . . . . . . . . . . . . . . . . . . . . . Combat Hostiles . | . . . . . . . . . . . . . . . . . . . . . . . . . . . . . . Parts Melted 13 | . . 4 . 2 . . . . . . . . . . . . . . 1 2 . . . . . . 1 2 1 Heat Transferred 10777 | . 555 1036 814 1036 . . . . . . . . . . 185 222 . . 137 444 . 942 74 . . . 777 1258 3297 Parts Sabotaged . | . . . . . . . . . . . . . . . . . . . . . . . . . . . . . . Parts Stolen . | . . . . . . . . . . . . . . . . . . . . . . . . . . . . . . Parts Stripped . | . . . . . . . . . . . . . . . . . . . . . . . . . . . . . . Power Chain Reactions 5 | . . . . . . . . . . . . . . . . . . . 2 . . . . . . . . . 3 Missiles Intercepted . | . . . . . . . . . . . . . . . . . . . . . . . . . . . . . . Alert | -11 -10 -9 -9 -8 -7 -7 -7 -7 -6 -6 -6 -6 -6 -6 -5 -5 -5 -5 -4 -4 -4 -4 -4 -4 -4 -3 -3 -3 -2 ------- Run | Scr Mat Mat Min Mat Fac Low Low Dat Pro Fac Ext Cet Arc Hub Fac Upp Upp War Pro Fac Was Fac Upp Upp Zhi Pro Res Tes Res Peak Influence 624 | 15 208 344 249 166 156 . . . . 211 621 565 329 267 144 . . . . 296 5 624 . . . . 341 291 496 Initial 347 | . 9 16 114 3 55 . . . . . 49 347 226 114 81 . . . . 77 5 . . . . . 13 191 78 Average 135 | 7 82 162 111 86 69 . . . . 76 241 483 300 172 87 . . . . 123 4 125 . . . . 147 130 120 Maximum Alert Level 2 | . 1 1 1 . . . . . . 1 2 2 1 1 . . . . . 1 . 2 . . . . 1 1 2 Low Security (%) 75 | 100 96 65 73 100 100 . . . . 79 58 . . 78 100 . . . . 72 100 78 . . . . 56 80 76 Level 1 20 | . 3 34 26 . . . . . . 20 17 28 100 21 . . . . . 27 . 19 . . . . 43 19 21 Level 2 3 | . . . . . . . . . . . 24 71 . . . . . . . . . 2 . . . . . . 2 Level 3 . | . . . . . . . . . . . . . . . . . . . . . . . . . . . . . . Level 4 . | . . . . . . . . . . . . . . . . . . . . . . . . . . . . . . Level 5 . | . . . . . . . . . . . . . . . . . . . . . . . . . . . . . . High Security . | . . . . . . . . . . . . . . . . . . . . . . . . . . . . . . Max Security . | . . . . . . . . . . . . . . . . . . . . . . . . . . . . . . Squads Dispatched 28 | . 2 1 1 . . . . . . 1 2 . . 4 1 . . . . 2 . 5 . . . . 5 3 1 Investigation 3 | . 1 . 1 . . . . . . . . . . . . . . . . . . . . . . . 1 . . Extermination 13 | . . . . . . . . . . . . . . 2 1 . . . . 1 . 4 . . . . 3 2 . Reinforcement 10 | . 1 1 . . . . . . . . 1 . . 2 . . . . . 1 . 1 . . . . 1 1 1 Assault 1 | . . . . . . . . . . . 1 . . . . . . . . . . . . . . . . . . Garrison 1 | . . . . . . . . . . 1 . . . . . . . . . . . . . . . . . . . Intercept . | . . . . . . . . . . . . . . . . . . . . . . . . . . . . . . Searches Triggered . | . . . . . . . . . . . . . . . . . . . . . . . . . . . . . . Construction Impeded . | . . . . . . . . . . . . . . . . . . . . . . . . . . . . . . Haulers Reinforced 2 | . . . . . . . . . . . . . . . . . . . . . . . . . . . 1 . 1 Active Scanning Responses . | . . . . . . . . . . . . . . . . . . . . . . . . . . . . . . Cargo Convoy Interrupts . | . . . . . . . . . . . . . . . . . . . . . . . . . . . . . . Stealth | -11 -10 -9 -9 -8 -7 -7 -7 -7 -6 -6 -6 -6 -6 -6 -5 -5 -5 -5 -4 -4 -4 -4 -4 -4 -4 -3 -3 -3 -2 --------- Run | Scr Mat Mat Min Mat Fac Low Low Dat Pro Fac Ext Cet Arc Hub Fac Upp Upp War Pro Fac Was Fac Upp Upp Zhi Pro Res Tes Res Distress Signals 30 | . 1 5 . 2 . . . . . . 4 1 1 2 . . . . 1 . . 4 . . . . . . 9 Communications Jammed 24 | . . . . . . . . . . . . . . . . . . . . . . . . . . . 6 15 3 Distress Signals 24 | . . . . . . . . . . . . . . . . . . . . . . . . . . . 6 15 3 Times Spotted 384 | . 22 27 7 15 5 8 7 . 4 8 31 12 17 16 1 4 2 17 30 20 . 44 . 3 . 1 20 23 40 Peak Tracking Total 13 | . 3 11 3 4 2 4 5 . 3 4 6 6 2 5 1 3 1 7 5 8 . 9 . 3 . 1 6 3 13 Tactical Retreats 25 | . 1 . 2 1 . . . . 1 . 1 1 . . . . . . 5 2 . 4 . . . . 1 2 4 Traps | -11 -10 -9 -9 -8 -7 -7 -7 -7 -6 -6 -6 -6 -6 -6 -5 -5 -5 -5 -4 -4 -4 -4 -4 -4 -4 -3 -3 -3 -2 ------- Run | Scr Mat Mat Min Mat Fac Low Low Dat Pro Fac Ext Cet Arc Hub Fac Upp Upp War Pro Fac Was Fac Upp Upp Zhi Pro Res Tes Res Traps Triggered 5 | . 1 . . . . . . . . . 1 . . . . . . . . 1 . 1 . . . . 1 . . Indirectly . | . . . . . . . . . . . . . . . . . . . . . . . . . . . . . . Trap Hack Attempts . | . . . . . . . . . . . . . . . . . . . . . . . . . . . . . . Triggered . | . . . . . . . . . . . . . . . . . . . . . . . . . . . . . . Disarmed . | . . . . . . . . . . . . . . . . . . . . . . . . . . . . . . Reprogrammed . | . . . . . . . . . . . . . . . . . . . . . . . . . . . . . . Reused . | . . . . . . . . . . . . . . . . . . . . . . . . . . . . . . Traps Extracted . | . . . . . . . . . . . . . . . . . . . . . . . . . . . . . . Installed . | . . . . . . . . . . . . . . . . . . . . . . . . . . . . . . Triggered 11 | . . . . . . . 1 . . . . . . . . . . 8 . . . . . . . 2 . . . Machines | -11 -10 -9 -9 -8 -7 -7 -7 -7 -6 -6 -6 -6 -6 -6 -5 -5 -5 -5 -4 -4 -4 -4 -4 -4 -4 -3 -3 -3 -2 ---------- Run | Scr Mat Mat Min Mat Fac Low Low Dat Pro Fac Ext Cet Arc Hub Fac Upp Upp War Pro Fac Was Fac Upp Upp Zhi Pro Res Tes Res Machines Disabled 37 | . . . . 2 . . . . 1 1 3 5 3 . . 1 . . 1 . . 11 . . . . 2 5 2 Max in Single Turn 6 | . . . . 1 . . . . 1 1 1 . . . . 1 . . 1 . . 6 . . . . 1 1 1 Garrison Access 5 | . . . . . . . . . . . . . . . . . . . . 2 . 1 . . . . . 1 1 Machines Sabotaged . | . . . . . . . . . . . . . . . . . . . . . . . . . . . . . . Garrisons Compromised . | . . . . . . . . . . . . . . . . . . . . . . . . . . . . . . Overloaded Fab Kills . | . . . . . . . . . . . . . . . . . . . . . . . . . . . . . . Hacking | -11 -10 -9 -9 -8 -7 -7 -7 -7 -6 -6 -6 -6 -6 -6 -5 -5 -5 -5 -4 -4 -4 -4 -4 -4 -4 -3 -3 -3 -2 --------- Run | Scr Mat Mat Min Mat Fac Low Low Dat Pro Fac Ext Cet Arc Hub Fac Upp Upp War Pro Fac Was Fac Upp Upp Zhi Pro Res Tes Res Machines Accessed 89 | . 6 5 1 4 2 1 1 4 1 4 7 1 . 4 5 . . 5 1 8 . 7 1 . 6 . 4 10 1 Terminals 49 | . 6 3 . 3 1 1 . . . 4 7 1 . 4 1 . . . 1 3 . 3 . . . . 4 7 . Fabricators 3 | . . . . . . . . . . . . . . . 2 . . . . . . . . . . . . 1 . Repair Stations 5 | . . 1 . . . . . . . . . . . . 2 . . . . . . 2 . . . . . . . Recycling Units 3 | . . . . 1 1 . . . . . . . . . . . . . . 1 . . . . . . . . . Scanalyzers 5 | . . 1 . . . . . . . . . . . . . . . . . 2 . 1 . . . . . 1 . Garrison Access 5 | . . . . . . . . . . . . . . . . . . . . 2 . 1 . . . . . 1 1 Total Hacks 264 | . 22 17 1 15 2 1 1 31 1 9 22 1 . 15 10 . . 13 2 22 . 17 1 . 19 . 12 29 1 Successful 195 | . 12 13 1 11 1 1 1 31 1 7 11 1 . 10 5 . . 13 1 18 . 12 1 . 19 . 7 17 1 Failed 67 | . 10 3 . 3 1 . . . . 2 11 . . 5 5 . . . 1 4 . 5 . . . . 5 12 . Catastrophic 7 | . 1 . . . 1 . . . . . 2 . . . . . . . . . . 1 . . . . . 2 . Database Lockouts 2 | . . 1 . 1 . . . . . . . . . . . . . . . . . . . . . . . . . Manual 88 | . 13 7 . 12 2 . . . . 1 17 1 . 6 . . . 1 . 6 . 4 . . . . 6 12 . Terminals 146 | . 22 9 . 14 1 1 . . . 9 22 1 . 15 2 . . . 2 7 . 6 . . . . 12 23 . Fabricators 7 | . . . . . . . . . . . . . . . 5 . . . . . . . . . . . . 2 . Repair Stations 12 | . . 2 . . . . . . . . . . . . 3 . . . . . . 7 . . . . . . . Recycling Units 4 | . . . . 1 1 . . . . . . . . . . . . . . 2 . . . . . . . . . Scanalyzers 21 | . . 6 . . . . . . . . . . . . . . . . . 9 . 3 . . . . . 3 . Garrison Access 7 | . . . . . . . . . . . . . . . . . . . . 4 . 1 . . . . . 1 1 Terminal Hacks 131 | . 11 5 1 5 . 1 1 31 1 6 7 1 . 6 . . . 13 1 5 . 4 1 . 19 . 5 7 . Record 24 | . . . . . . 1 . 11 1 . . . . . . . . 2 . . . . 1 . 7 . 1 . . Part Schematic 19 | . 2 . . . . . . 12 . . . . . . . . . . . . . . . . 4 . . 1 . Robot Schematic 5 | . . . . . . . . 5 . . . . . . . . . . . . . . . . . . . . . Robot Analysis 8 | . . . . 1 . . . . . . 2 . . . . . . . . . . . . . 4 . . 1 . Prototype ID Bank 33 | . 6 2 . 1 . . . 3 . 3 2 . . 1 . . . 10 . 1 . . . . 4 . . . . Open Door 5 | . . . 1 . . . 1 . . . . 1 . . . . . 1 1 . . . . . . . . . . Open DSF 1 | . . . . . . . . . . . . . . . . . . . . . . 1 . . . . . . . Level Access Points 1 | . . . . . . . . . . . . . . 1 . . . . . . . . . . . . . . . Branch Access Points 5 | . . 1 . . . . . . . 1 . . . . . . . . . 1 . 1 . . . . 1 . . Terminal Index 1 | . . . . . . . . . . . . . . . . . . . . . . . . . . . 1 . . Repair Station Index 1 | . . . . . . . . . . . . . . . . . . . . 1 . . . . . . . . . Alert Level 1 | . . . . . . . . . . . . . . 1 . . . . . . . . . . . . . . . Unreport Threat 8 | . 1 . . 1 . . . . . . . . . . . . . . . 2 . 2 . . . . . 2 . Locate Traps 14 | . 2 2 . 1 . . . . . 2 1 . . 2 . . . . . . . . . . . . 1 3 . Recall Investigation 1 | . . . . . . . . . . . . . . . . . . . . . . . . . . . 1 . . Hauler Manifests 1 | . . . . . . . . . . . 1 . . . . . . . . . . . . . . . . . . Registered Prototypes 1 | . . . . . . . . . . . . . . 1 . . . . . . . . . . . . . . . Zone Layout 2 | . . . . 1 . . . . . . 1 . . . . . . . . . . . . . . . . . . Fabricator Hacks 5 | . . . . . . . . . . . . . . . 3 . . . . . . . . . . . . 2 . Network Status 1 | . . . . . . . . . . . . . . . 1 . . . . . . . . . . . . . . Load Schematic 3 | . . . . . . . . . . . . . . . 2 . . . . . . . . . . . . 1 . Build 1 | . . . . . . . . . . . . . . . . . . . . . . . . . . . . 1 . Repair Station Hacks 9 | . . 2 . . . . . . . . . . . . 2 . . . . . . 5 . . . . . . . Scan Component 5 | . . 1 . . . . . . . . . . . . 1 . . . . . . 3 . . . . . . . Repair 4 | . . 1 . . . . . . . . . . . . 1 . . . . . . 2 . . . . . . . Recycling Unit Hacks 1 | . . . . . . . . . . . . . . . . . . . . 1 . . . . . . . . . Retrieve Components 1 | . . . . . . . . . . . . . . . . . . . . 1 . . . . . . . . . Scanalyzer 18 | . . 6 . . . . . . . . . . . . . . . . . 8 . 1 . . . . . 3 . Insert Component 12 | . . 3 . . . . . . . . . . . . . . . . . 5 . 1 . . . . . 3 . Analyze 6 | . . 3 . . . . . . . . . . . . . . . . . 3 . . . . . . . . . Garrison Access Hacks 5 | . . . . . . . . . . . . . . . . . . . . 2 . 1 . . . . . 1 1 Seal Access 5 | . . . . . . . . . . . . . . . . . . . . 2 . 1 . . . . . 1 1 Unauthorized Hacks 26 | . 1 . . 6 1 . . . . 1 4 . . 4 . . . . . 2 . 1 . . . . 2 4 . Terminals 23 | . 1 . . 5 . . . . . 1 4 . . 4 . . . . . 1 . 1 . . . . 2 4 . Track 9 | . 1 . . 3 . . . . . . 1 . . 3 . . . . . . . . . . . . . 1 . Assimilate 1 | . . . . . . . . . . . . . . . . . . . . . . . . . . . . 1 . Botnet 11 | . . . . 1 . . . . . 1 2 . . 1 . . . . . 1 . 1 . . . . 2 2 . Disrupt 2 | . . . . 1 . . . . . . 1 . . . . . . . . . . . . . . . . . . Fabricators . | . . . . . . . . . . . . . . . . . . . . . . . . . . . . . . Repair Stations . | . . . . . . . . . . . . . . . . . . . . . . . . . . . . . . Recycling Units 3 | . . . . 1 1 . . . . . . . . . . . . . . 1 . . . . . . . . . Reject 3 | . . . . 1 1 . . . . . . . . . . . . . . 1 . . . . . . . . . Scanalyzers . | . . . . . . . . . . . . . . . . . . . . . . . . . . . . . . Garrison Access . | . . . . . . . . . . . . . . . . . . . . . . . . . . . . . . Data Cores Recovered 3 | . . . . . . . . . . 1 1 . . . . . . . . 1 . . . . . . . . . Used 3 | . . . . . . . . . . 1 1 . . . . . . . . 1 . . . . . . . . . Hacking Detections 56 | . 5 4 . 2 2 1 . . . 4 7 . . 4 5 . . . . 5 . 6 . . . . 4 7 . Full Trace Events 1 | . 1 . . . . . . . . . . . . . . . . . . . . . . . . . . . . Feedback Events 1 | . 1 . . . . . . . . . . . . . . . . . . . . . . . . . . . . Corruption 1 | . 1 . . . . . . . . . . . . . . . . . . . . . . . . . . . . Feedback Blocked . | . . . . . . . . . . . . . . . . . . . . . . . . . . . . . . Robot Schematics Acquired 5 | . . . . . . . . 5 . . . . . . . . . . . . . . . . . . . . . Robots Built . | . . . . . . . . . . . . . . . . . . . . . . . . . . . . . . Authchips . | . . . . . . . . . . . . . . . . . . . . . . . . . . . . . . Time . | . . . . . . . . . . . . . . . . . . . . . . . . . . . . . . Total Robot Build Rating . | . . . . . . . . . . . . . . . . . . . . . . . . . . . . . . Part Schematics Acquired 24 | . 2 3 . . . . . 12 . . . . . . . . . . . 2 . . . . 4 . . 1 . Parts Built 1 | . . . . . . . . . . . . . . . . . . . . . . . . . . . . 1 . Authchips 1 | . . . . . . . . . . . . . . . . . . . . . . . . . . . . 1 . Time 62 | . . . . . . . . . . . . . . . . . . . . . . . . . . . . 62 . Total Part Build Rating 7 | . . . . . . . . . . . . . . . . . . . . . . . . . . . . 7 . Parts Repaired 4 | . . 1 . . . . . . . . . . . . 1 . . . . . . 2 . . . . . . . Time 292 | . . 26 . . . . . . . . . . . . 108 . . . . . . 158 . . . . . . . Parts Recycled . | . . . . . . . . . . . . . . . . . . . . . . . . . . . . . . Recycled Matter . | . . . . . . . . . . . . . . . . . . . . . . . . . . . . . . Retrieved Matter . | . . . . . . . . . . . . . . . . . . . . . . . . . . . . . . Retrieved Components 2 | . . . . . . . . . . . . . . . . . . . . 2 . . . . . . . . . Parts Scanalyzed 6 | . . 3 . . . . . . . . . . . . . . . . . 2 . 1 . . . . . . . Part Schematics Acquired 5 | . . 3 . . . . . . . . . . . . . . . . . 2 . . . . . . . . . Parts Damaged 1 | . . . . . . . . . . . . . . . . . . . . 1 . . . . . . . . . Bothacking | -11 -10 -9 -9 -8 -7 -7 -7 -7 -6 -6 -6 -6 -6 -6 -5 -5 -5 -5 -4 -4 -4 -4 -4 -4 -4 -3 -3 -3 -2 ------------ Run | Scr Mat Mat Min Mat Fac Low Low Dat Pro Fac Ext Cet Arc Hub Fac Upp Upp War Pro Fac Was Fac Upp Upp Zhi Pro Res Tes Res Used RIF Installer . | . . . . . . . . . . . . . . . . . . . . . . . . . . . . . . Robots Hacked 3 | . . . . . 1 . . . . . . . . 2 . . . . . . . . . . . . . . . Non-combat 3 | . . . . . 1 . . . . . . . . 2 . . . . . . . . . . . . . . . Combat . | . . . . . . . . . . . . . . . . . . . . . . . . . . . . . . Robot Hacks Applied 3 | . . . . . 1 . . . . . . . . 2 . . . . . . . . . . . . . . . no_distress 3 | . . . . . 1 . . . . . . . . 2 . . . . . . . . . . . . . . . Relay Couplers Released 4 | . . . . . . . . . . . . . . . . . . . . . . . . . . . . . 4 Programmers 4 | . . . . . . . . . . . . . . . . . . . . . . . . . . . . . 4 Fabnet Peak Effective % . | . . . . . . . . . . . . . . . . . . . . . . . . . . . . . . Robots Rewired 30 | . . . . . . . . . . . 16 . . . . 3 . . 11 . . . . . . . . . . Allies Hacked . | . . . . . . . . . . . . . . . . . . . . . . . . . . . . . . Hacks Repelled . | . . . . . . . . . . . . . . . . . . . . . . . . . . . . . . Allies | -11 -10 -9 -9 -8 -7 -7 -7 -7 -6 -6 -6 -6 -6 -6 -5 -5 -5 -5 -4 -4 -4 -4 -4 -4 -4 -3 -3 -3 -2 -------- Run | Scr Mat Mat Min Mat Fac Low Low Dat Pro Fac Ext Cet Arc Hub Fac Upp Upp War Pro Fac Was Fac Upp Upp Zhi Pro Res Tes Res Total Allies 37 | . . . . . . . . . 1 . 22 . . . . 3 . . 11 . . . . . . . . . . Largest Group 18 | . . . . . . . . . 1 1 18 15 3 . . 3 2 . 6 6 . . . . . . . . . Highest-Rated Group 699 | . . . . . . . . . 96 96 699 590 217 . . 93 57 . 280 280 . . . . . . . . . Highest-Rated Ally 159 | . . . . . . . . . 96 96 159 159 144 . . 31 31 . 47 47 . . . . . . . . . Total Orders . | . . . . . . . . . . . . . . . . . . . . . . . . . . . . . . Ally Attacks 304 | . . . . . . . . . 7 13 149 76 11 . . 26 3 . 6 13 . . . . . . . . . Total Damage 6531 | . . . . . . . . . 227 669 3591 1212 107 . . 380 66 . . 279 . . . . . . . . . Kills 53 | . . . . . . . . . 2 5 28 10 1 . . 5 1 . . 1 . . . . . . . . . Allies Corrupted . | . . . . . . . . . . . . . . . . . . . . . . . . . . . . . . Allies Melted 2 | . . . . . . . . . . . . . . . . . . . . . . . . . . . . . 2 Intel | -11 -10 -9 -9 -8 -7 -7 -7 -7 -6 -6 -6 -6 -6 -6 -5 -5 -5 -5 -4 -4 -4 -4 -4 -4 -4 -3 -3 -3 -2 ------- Run | Scr Mat Mat Min Mat Fac Low Low Dat Pro Fac Ext Cet Arc Hub Fac Upp Upp War Pro Fac Was Fac Upp Upp Zhi Pro Res Tes Res Robot Analysis Total 8 | . . . . 1 . . . . . . 2 . . . . . . . . . . . . . 4 . . 1 . Derelict Logs Recovered 9 | . . . 1 . . 1 1 . 1 . . . . . . 1 1 . 2 . . . . 1 . . . . . Drone Launches . | . . . . . . . . . . . . . . . . . . . . . . . . . . . . . . Drone Recoveries . | . . . . . . . . . . . . . . . . . . . . . . . . . . . . . . Exploration | -11 -10 -9 -9 -8 -7 -7 -7 -7 -6 -6 -6 -6 -6 -6 -5 -5 -5 -5 -4 -4 -4 -4 -4 -4 -4 -3 -3 -3 -2 ------------- Run | Scr Mat Mat Min Mat Fac Low Low Dat Pro Fac Ext Cet Arc Hub Fac Upp Upp War Pro Fac Was Fac Upp Upp Zhi Pro Res Tes Res Turns Passed 26155 | 88 933 604 900 759 629 1425 1104 128 881 582 1440 208 370 592 583 919 870 1356 1374 816 434 1789 962 776 388 884 1007 1700 1654 Spaces Moved 13375 | 38 420 241 448 400 361 833 641 86 522 359 741 107 134 231 291 469 568 809 656 382 282 762 452 423 214 515 398 812 780 Core . | . . . . . . . . . . . . . . . . . . . . . . . . . . . . . . Treads 4164 | . 88 . . . . . . . . . . 8 1 . . . . . . . . 473 452 423 214 515 398 812 780 Legs 33 | 33 . . . . . . . . . . . . . . . . . . . . . . . . . . . . . Wheels 9178 | 5 332 241 448 400 361 833 641 86 522 359 741 99 133 231 291 469 568 809 656 382 282 289 . . . . . . . Hover . | . . . . . . . . . . . . . . . . . . . . . . . . . . . . . . Flight . | . . . . . . . . . . . . . . . . . . . . . . . . . . . . . . Fastest Speed 95 | 95 95 155 155 135 135 145 145 145 145 140 140 125 155 155 145 145 145 145 145 145 145 145 161 159 159 159 150 145 145 Average Speed 151 | 116 146 158 168 149 149 145 145 145 145 143 147 158 168 155 153 145 145 148 158 150 145 153 161 159 159 159 160 148 145 Slowest Speed 275 | 120 240 170 170 155 225 160 160 145 160 160 170 242 275 155 170 160 145 160 160 160 145 161 161 161 242 159 245 245 145 Overloaded Moves . | . . . . . . . . . . . . . . . . . . . . . . . . . . . . . . Propulsion Burnouts . | . . . . . . . . . . . . . . . . . . . . . . . . . . . . . . Robots Hopped . | . . . . . . . . . . . . . . . . . . . . . . . . . . . . . . Cave-ins Triggered . | . . . . . . . . . . . . . . . . . . . . . . . . . . . . . . Teleports 1 | . . . . . . . . . . . . . . . . . . . . . . . . . 1 . . . . Exploration Rate (%) 52 | 3 67 26 81 33 13 78 74 71 63 13 86 58 81 31 9 54 74 87 54 10 94 25 62 72 62 72 14 76 31 Regions Visited 29 Branch Regions 18 Pre-discovered Areas 8 | . . . . . . . . 1 . . . . . . . 1 1 . 2 . . . . . 3 . . . . Known Exits Taken 23 | . . 1 . . 1 1 1 1 1 1 1 1 1 1 1 1 1 1 1 . . 1 1 1 1 1 1 1 . Unknown Exits Taken 4 | 1 1 . 1 1 . . . . . . . . . . . . . . . . . . . . . . . . . Scrap Searched 25 | . . . 2 . . 2 4 . 2 . . . . . . 2 4 . 3 . . . 2 3 . 1 . . . Spaces Dug 148 | . 1 . . . 1 1 . . 1 5 . . . 9 9 3 . 3 . 9 . 24 2 6 . 7 15 33 19 Terrain Destroyed 438 | . 1 . . 13 2 32 73 . 1 6 2 . . 9 9 5 . 5 7 18 . 104 3 18 . 7 30 48 45 Melee 42 | . . . . . 1 1 . . 1 3 . . . 5 9 2 . 2 . 3 . 2 1 . . . . 8 4 Projectile 217 | . 1 . . 1 1 . . . . 3 2 . . 4 . 3 . 3 . 15 . 57 2 18 . 7 30 39 31 AOE 178 | . . . . 12 . 31 73 . . . . . . . . . . . 7 . . 45 . . . . . . 10 Terrain Rammed . | . . . . . . . . . . . . . . . . . . . . . . . . . . . . . . Walls Destroyed . | . . . . . . . . . . . . . . . . . . . . . . . . . . . . . . Machines Disabled . | . . . . . . . . . . . . . . . . . . . . . . . . . . . . . . Actions | -11 -10 -9 -9 -8 -7 -7 -7 -7 -6 -6 -6 -6 -6 -6 -5 -5 -5 -5 -4 -4 -4 -4 -4 -4 -4 -3 -3 -3 -2 --------- Run | Scr Mat Mat Min Mat Fac Low Low Dat Pro Fac Ext Cet Arc Hub Fac Upp Upp War Pro Fac Was Fac Upp Upp Zhi Pro Res Tes Res Total 17613 | 57 609 390 561 504 434 987 790 88 632 404 1028 133 206 368 402 661 602 927 884 564 306 1183 669 502 244 561 620 1164 1133 Wait 2063 | 1 79 66 75 43 14 92 117 . 86 2 23 1 12 42 64 113 20 71 81 109 . 211 186 59 3 23 87 182 201 Move 13347 | 37 419 240 447 399 360 832 640 85 521 358 740 106 133 230 290 468 567 808 655 382 281 761 451 422 213 514 397 811 780 Hop . | . . . . . . . . . . . . . . . . . . . . . . . . . . . . . . Pick Up 158 | 3 20 7 3 13 7 4 2 . 2 7 3 1 4 4 5 2 . 5 4 9 2 14 4 . 2 1 8 11 11 Fast Attach 93 | 1 1 5 4 . 4 . . . 1 1 9 4 2 . 3 2 1 3 3 6 6 10 1 1 5 . 5 12 3 Attach 66 | 1 4 4 . 3 3 3 2 . . 3 . 1 2 2 2 . . . 3 6 . 6 . . 1 . 6 4 10 Detach 11 | . . . . . 1 . . . . . . . . . . . . 1 . . 2 1 . . 1 . 1 3 1 Swap 458 | 1 9 10 4 6 16 21 14 3 14 9 21 6 5 30 14 27 7 9 22 13 2 61 11 5 3 7 37 31 40 Drop 228 | 1 11 14 9 10 15 1 1 . 3 8 20 5 4 2 9 8 2 9 4 9 10 20 4 2 5 1 8 24 9 Fire 846 | 12 66 44 19 30 12 29 13 . 3 12 44 9 33 49 5 16 5 19 62 27 . 96 4 13 . 15 68 69 72 Melee 97 | . . . . . 2 5 1 . 2 4 . . 11 9 10 5 . 2 . 3 3 2 7 . 11 . . 15 5 Ram 1 | . . . . . . . . . . . 1 . . . . . . . . . . . . . . . . . . Kick . | . . . . . . . . . . . . . . . . . . . . . . . . . . . . . . Crush 8 | . . . . . . . . . . . 1 . . . . . . . . . . 1 . . . . 3 2 1 Escape Stasis 8 | . . . . . . . . . . . 8 . . . . . . . . . . . . . . . . . . Rewire 229 | . . . . . . . . . . . 158 . . . . 20 . . 50 . . . 1 . . . . . . Trap . | . . . . . . . . . . . . . . . . . . . . . . . . . . . . . . Miscellaneous . | . . . . . . . . . . . . . . . . . . . . . . . . . . . . . . Route ------- -11/Scrapyard -10/Materials (discovered 2 exits: *Mat / [*Min]) -9/Materials (discovered 2 exits: *Min x2) -9/Mines -8/Materials -7/Factory -7/Lower Caves -7/Lower Caves (discovered 2 exits: Fac / *Dat) -7/Data Miner -6/Proximity Caves -6/Factory (discovered 5 exits: *Fac / Low x2 / *Ext x2) -6/Extension (discovered 2 exits: *Fac / *Cet) -6/Cetus -6/Archives (discovered 2 exits: *Fac / *Hub) -6/Hub_04(d) (discovered 4 exits: *Fac x4) -5/Factory -5/Upper Caves -5/Upper Caves (discovered 2 exits: *Fac / *War) -5/Warlord -4/Proximity Caves -4/Factory (discovered 5 exits: *Res x2 / *Upp x2 / Arm) -4/Waste -4/Factory (discovered 3 exits: *Upp x2 / Arm) -4/Upper Caves -4/Upper Caves (discovered 2 exits: *Res / *Zhi) -4/Zhirov -3/Proximity Caves -3/Research (discovered 2 exits: *Tes x2) -3/Testing -2/Research (discovered 1 exit: *Acc) History --------- Turn | Location | Event 1 | -11/Scrapyard | Discovered new exit (range 1) 89 | -11/Scrapyard | Entered Materials 318 | -10/Materials | Build established: Mutant 581 | -10/Materials | Discovered new exit (range 13) 630 | -10/Materials | Core integrity fell below 50% 919 | -10/Materials | Discovered new exit (range 15) 1022 | -10/Materials | Entered another Materials area 1022 | -9/Materials | Evolved 2 slots: Propulsion x1, Utility x1 1230 | -9/Materials | Repaired Beam Cannon 1339 | -9/Materials | Discovered new exit (range 5) 1409 | -9/Materials | Destroyed 7 combat bots 1474 | -9/Materials | Central database locked down 1474 | -9/Materials | Identified exit to Mines 1626 | -9/Materials | Entered Mines 1809 | -9/Mines | Met a Derelict shopkeep closing up shop 2516 | -9/Mines | Discovered new exit (range 8) 2526 | -9/Mines | Entered Materials 2526 | -8/Materials | Evolved 2 slots: Propulsion x1, Utility x1 2636 | -8/Materials | Central database locked down 2773 | -8/Materials | Build established: Scavenger-Mutant 3233 | -8/Materials | Discovered new exit (range 11) 3285 | -8/Materials | Entered Factory 3285 | -7/Factory | Evolved 2 slots: Propulsion x1, Utility x1 3848 | -7/Factory | Discovered new exit (range 8) 3858 | -7/Factory | Identified exit to Lower Caves 3914 | -7/Factory | Entered Lower Caves 3922 | -7/Lower Caves | Spotted B-75 Beast 4503 | -7/Lower Caves | Build established: Scavenger-Assassin 4867 | -7/Lower Caves | Learned 8 Factory zone layouts 4911 | -7/Lower Caves | Build established: Scavenger-Skirmisher 5136 | -7/Lower Caves | Discovered new exit (range 11) 5181 | -7/Lower Caves | Identified exit to Lower Caves 5339 | -7/Lower Caves | Entered another Lower Caves area 5379 | -7/Lower Caves | Discovered new exit (range 16) 5560 | -7/Lower Caves | Learned Factory emergency access door positions 6328 | -7/Lower Caves | Discovered new exit (range 11) 6341 | -7/Lower Caves | Identified exit to Data Miner 6443 | -7/Lower Caves | Entered Data Miner 6443 | -7/Data Miner | Discovered new exit (range 6) 6471 | -7/Data Miner | Met Data Miner 6507 | -7/Data Miner | Learned location of Section 7 (-2) 6507 | -7/Data Miner | Acquired the access code to Warlord's prototype stash 6533 | -7/Data Miner | Received God Mode back door access code from Data Miner 6558 | -7/Data Miner | Build established: Scavenger-Mutant 6564 | -7/Data Miner | Identified exit to Proximity Caves 6571 | -7/Data Miner | Entered Proximity Caves 6599 | -6/Proximity Caves | Identified exit to Factory 6860 | -6/Proximity Caves | Build established: Scavenger-Skirmisher 6880 | -6/Proximity Caves | Found Alien Artifact 7029 | -6/Proximity Caves | Escorted by Enhanced Grunt 7452 | -6/Proximity Caves | Entered Factory 7452 | -6/Factory | Accompanied by 1 ally 7452 | -6/Factory | Evolved 2 slots: Propulsion x1, Utility x1 7513 | -6/Factory | Identified exit to Lower Caves 7513 | -6/Factory | Identified exit to Extension 7953 | -6/Factory | Garrison activated, responded to threat 7979 | -6/Factory | Discovered new exit (range 16) 8034 | -6/Factory | Entered Extension 8034 | -6/Extension | Accompanied by 1 ally 8135 | -6/Extension | Build established: Mutant 8374 | -6/Extension | Rescued A7 8478 | -6/Extension | Rescued a captive Derelict 8823 | -6/Extension | Spotted B-75 Beast 8833 | -6/Extension | Allies destroyed B-75 Beast 8844 | -6/Extension | Spotted B-75 Beast 8845 | -6/Extension | Build established: Commander-Mutant 8853 | -6/Extension | Allies destroyed B-75 Beast 9002 | -6/Extension | Rescued a captive Derelict 9003 | -6/Extension | Rescued a captive Derelict 9388 | -6/Extension | Rescued a captive Derelict 9389 | -6/Extension | Rescued a captive Derelict 9426 | -6/Extension | Discovered new exit (range 10) 9428 | -6/Extension | Discovered new exit (range 6) 9434 | -6/Extension | First assault squad dispatched 9456 | -6/Extension | Identified exit to Cetus 9474 | -6/Extension | Entered Cetus 9474 | -6/Cetus | Accompanied by 15 allies (A7) 9479 | -6/Cetus | Acquired a Cetus Manufacturing Module code from A7 9492 | -6/Cetus | Spotted Cetus Guard 9492 | -6/Cetus | Spotted Cetus Guard 9496 | -6/Cetus | Spotted Cetus Guard 9505 | -6/Cetus | Allies destroyed Cetus Guard 9506 | -6/Cetus | Spotted Cetus Guard 9512 | -6/Cetus | Allies destroyed Cetus Guard 9512 | -6/Cetus | Allies destroyed Cetus Guard 9524 | -6/Cetus | Allies destroyed Cetus Guard 9561 | -6/Cetus | Cetus Manufacturing Module disabled 9623 | -6/Cetus | Failed to start Cetus Manufacturing Module 9636 | -6/Cetus | Escorted A7 to Cetus Mainframe 9652 | -6/Cetus | Discovered new exit (range 16) 9672 | -6/Cetus | Identified exit to Archives 9682 | -6/Cetus | Entered Archives 9682 | -6/Archives | Accompanied by 3 allies (A7) 9687 | -6/Archives | Received a hacking code to weaken MAIN.C 9789 | -6/Archives | Build established: Scavenger-Mutant 9875 | -6/Archives | Discovered new exit (range 15) 9994 | -6/Archives | Discovered new exit (range 16) 10051 | -6/Archives | Identified exit to Hub_04(d) 10052 | -6/Archives | Entered Hub_04(d) 10117 | -6/Hub_04(d) | Identified exit to Factory 10644 | -6/Hub_04(d) | Entered Factory 10644 | -5/Factory | Evolved 2 slots: Power x1, Utility x1 10858 | -5/Factory | Discovered new exit (range 19) 10889 | -5/Factory | Identified exit to Upper Caves 11101 | -5/Factory | Build established: Scavenger-Assassin 11103 | -5/Factory | Repaired Centrium Medium Armor Plating? 11227 | -5/Factory | Entered Upper Caves 11326 | -5/Upper Caves | Attacked by a delusional Derelict stockpiling Unaware 11529 | -5/Upper Caves | Build established: Scavenger-Skirmisher 12060 | -5/Upper Caves | Discovered new exit (range 14) 12108 | -5/Upper Caves | Identified exit to Upper Caves 12146 | -5/Upper Caves | Entered another Upper Caves area 12146 | -5/Upper Caves | Accompanied by 2 allies 12148 | -5/Upper Caves | Attracted the attention of an 0b10 checkpoint 12189 | -5/Upper Caves | Discovered new exit (range 15) 12528 | -5/Upper Caves | Encountered a Warlord checkpoint 12777 | -5/Upper Caves | Learned location of Armory (-4) 12934 | -5/Upper Caves | Discovered new exit (range 15) 12952 | -5/Upper Caves | Identified exit to Warlord 13016 | -5/Upper Caves | Entered Warlord 13086 | -5/Warlord | Discovered new exit (range 15) 13333 | -5/Warlord | Received a Watcher feed algorithm from an ecstatic Tinkerer 13411 | -5/Warlord | Build established: Scavenger-Mutant 13893 | -5/Warlord | Warlord's base attacked by MAIN.C 13893 | -5/Warlord | Met Warlord 13908 | -5/Warlord | Opened Warlord's prototype stash 13914 | -5/Warlord | Found Prototype Device 13914 | -5/Warlord | Identified System Purifier 13923 | -5/Warlord | Found Prototype Reactor 13923 | -5/Warlord | Identified Vortex Chain Reactor 13928 | -5/Warlord | Found Prototype Device 13928 | -5/Warlord | Identified Exp. Cloaking Device 13947 | -5/Warlord | Found Prototype Processor 14243 | -5/Warlord | Warlord forces counterattacked 14324 | -5/Warlord | Opened side exit 14369 | -5/Warlord | Identified exit to Proximity Caves 14372 | -5/Warlord | Entered Proximity Caves 14602 | -4/Proximity Caves | Build established: Scavenger-Skirmisher 15188 | -4/Proximity Caves | Snuck into a huge 0b10 base via the rear entrance 15602 | -4/Proximity Caves | Discovered new exit (range 8) 15621 | -4/Proximity Caves | Identified exit to Factory 15728 | -4/Proximity Caves | System corruption reached 10% 15746 | -4/Proximity Caves | Entered Factory 15746 | -4/Factory | Accompanied by 6 allies 15746 | -4/Factory | Evolved 2 slots: Utility x1, Weapon x1 15874 | -4/Factory | Discovered new exit (range 12) 15950 | -4/Factory | Identified exit to Research 16000 | -4/Factory | Lost 3 parts (1p1n1u) 16116 | -4/Factory | Identified exit to Upper Caves 16116 | -4/Factory | Identified exit to Armory 16146 | -4/Factory | Identified Exp. Target Analyzer 16146 | -4/Factory | Identified Dimensional Node Initializer 16547 | -4/Factory | Discovered exit to Research (range 12) 16562 | -4/Factory | Sucked down chute 16562 | -4/Factory | Entered Waste 16562 | -4/Waste | The area was eerily silent 16608 | -4/Waste | Build established: Scavenger-Mutant 16679 | -4/Waste | Found Prototype Device 16679 | -4/Waste | Identified Exp. Weapon Cycler 16940 | -4/Waste | A Compactor rumbled back to life 16941 | -4/Waste | Spotted C-40 Crusher 16968 | -4/Waste | Discovered new exit (range 12) 16983 | -4/Waste | Identified exit to Factory 16987 | -4/Waste | Build established: Scavenger-Assassin 16996 | -4/Waste | Entered Factory 17547 | -4/Factory | Repaired Broken Biometal Heavy Treads 18012 | -4/Factory | Repaired Broken Adv. KE Penetrator? 18377 | -4/Factory | Lost 5 parts (2n1u2w) 18768 | -4/Factory | Destroyed 8 combat bots 18785 | -4/Factory | Entered Upper Caves 19707 | -4/Upper Caves | Discovered new exit (range 9) 19744 | -4/Upper Caves | Identified exit to Upper Caves 19747 | -4/Upper Caves | Entered another Upper Caves area 19791 | -4/Upper Caves | Attracted the attention of an 0b10 checkpoint 19873 | -4/Upper Caves | Learned 4 Research zone layouts 19876 | -4/Upper Caves | Discovered exit to Research (range 7) 20109 | -4/Upper Caves | Build established: Scavenger-Skirmisher 20412 | -4/Upper Caves | Discovered new exit (range 14) 20487 | -4/Upper Caves | Build established: Scavenger-Mutant 20518 | -4/Upper Caves | Identified exit to Zhirov 20523 | -4/Upper Caves | Entered Zhirov 20523 | -4/Zhirov | Discovered new exit (range 3) 20552 | -4/Zhirov | Met Zhirov 20581 | -4/Zhirov | Learned location of Quarantine (-2) 20581 | -4/Zhirov | Learned location of Testing (-3) 20581 | -4/Zhirov | Learned location of Command (-1) 20610 | -4/Zhirov | Zhirov requested help retrieving the SGEMP Prototype 20654 | -4/Zhirov | Found Alien Artifact 20654 | -4/Zhirov | Identified Integrated Dissipator 20654 | -4/Zhirov | Installed Integrated Dissipator, increased core heat dissipation (+20) 20782 | -4/Zhirov | Found Alien Artifact 20782 | -4/Zhirov | Identified Transdimensional Reconstructor 20782 | -4/Zhirov | Warped through subspace 20910 | -4/Zhirov | Identified exit to Proximity Caves 20911 | -4/Zhirov | Entered Proximity Caves 21685 | -3/Proximity Caves | Discovered exit to Research (range 18) 21739 | -3/Proximity Caves | Attracted the attention of an 0b10 checkpoint 21795 | -3/Proximity Caves | Entered Research 21795 | -3/Research | Evolved 2 slots: Utility x2 21828 | -3/Research | Identified exit to Testing 22802 | -3/Research | Entered Testing 23188 | -3/Testing | Found Prototype Energy Cannon 23190 | -3/Testing | Fabricated Exp. Signal Interpreter? 23263 | -3/Testing | Found Prototype Processor 23316 | -3/Testing | Found Prototype Launcher 23384 | -3/Testing | Build established: Hacker-Assassin 23428 | -3/Testing | Found Prototype Device 23428 | -3/Testing | Identified AEGIS Remote Shield 23514 | -3/Testing | Identified Exp. Terrain Scan Processor 23514 | -3/Testing | Identified Com. Tesla Bomb Launcher 23576 | -3/Testing | Identified Cld. Nova Cannon 24300 | -3/Testing | Found Prototype Hackware 24491 | -3/Testing | Discovered new exit (range 9) 24500 | -3/Testing | Identified exit to Research 24502 | -3/Testing | Entered Research 24502 | -2/Research | Warlord forces began assault on 0b10 24502 | -2/Research | Evolved 2 slots: Utility x1, Weapon x1 24548 | -2/Research | Met up with Warlord 24612 | -2/Research | Research machine network offline 25008 | -2/Research | Borebot progress halted 25117 | -2/Research | Build established: Hacker-Mutant 25132 | -2/Research | Spotted Striker 25134 | -2/Research | Spotted Striker 25154 | -2/Research | Destroyed Striker 25301 | -2/Research | Borebot progress halted 25506 | -2/Research | Discovered new exit (range 15) 25526 | -2/Research | Identified exit to Access 25611 | -2/Research | Borebot progress halted 25660 | -2/Research | Found Exp. Terrain Scan Processor 25725 | -2/Research | Spotted Striker 25725 | -2/Research | Spotted Striker 25731 | -2/Research | Spotted Executioner 25747 | -2/Research | Destroyed Striker 25765 | -2/Research | Destroyed Executioner 25792 | -2/Research | Lost 4 parts (3u1w) 25794 | -2/Research | Destroyed 11 combat bots 26011 | -2/Research | Spotted Striker 26011 | -2/Research | Spotted Striker 26045 | -2/Research | Destroyed Striker 26098 | -2/Research | Spotted Striker 26101 | -2/Research | Destroyed Striker 26146 | -2/Research | Spotted Striker 26156 | -2/Research | Self-destructed Last Messages --------------- 26130_ H-88 Terminator knocked back. 26132_ Penetrated by Slug. 26133_ H-88 Terminator destroyed. 26138_ D-83 Annihilator suffers critical hit (Blast). 26138_ Destroyed Imp. Shock Absorption System. 26138_ D-83 Annihilator knocked back. 26139_ Hrd. Medium Armor Plating destroyed. 26141_ D-83 Annihilator destroyed. 26143_ The unstable cave ceiling collapses. 26143_ Penetrated by Slug. 26147_ The unstable cave ceiling collapses. 26149_ Penetrated by Slug. 26150_ Dropped Exp. Matter Compressor. 26151_ Extracted 299 matter. 26151_ Critical hit (Burn: +18). 26151_ Penetrated by Slug. 26153_ Door malfunctions. 26154_ Extracted 8 matter. 26154_ Quantum Reactor destroyed. 26156_ Cld. Antimatter Reactor destroyed. Map ----- +----------------------------------------------------+ | ?????????????????????????????????????????????????? | | ?????????????????????????????????????????????????? | | ?????????????????????????????????????????????????? | | ?????????????????????????????????????????????????? | | ?????????????????????????????????????????????????? | | ??????????????????????????? ?#???????????????????? | | ?????????????????????? # # ? ???????????????? | | ??????????????????? + ? # ?????????????? | | ?????????????????? # # " " ?#??????????? | | ?????????????????# # # "T" # ?????????? | | ??????????????? ## ?# # """ # ????????? | | ?????????????? ## ## # # ???????? | | ???????????? ## ## # # ???????? | | ????????????##+#### #############+### ??????? | | ???????????? ## ########## ??????? | | ??????????## gg ########## # ????? | | ?????????? Y g ########## + ????? | | ?????????#?# g ########## #? ???? | | ???????? ## ####;;## ######+#? ???? | | ???????? #### # ## # # ????? | | ??????? #### ;# # #? ??? | | ?????? + ## + # ???? | | ????? ####/ # % ;# # # ???? | | ????? ## %[ ## # # ??? | | ????######## % ### # # ? ?? | | ????######## #### @ # # # | | ???######### #### # ######## | | ???? + #### =% %# ############## | | ?? ##### #### %%* *=[+ | | ??? ##### #### =%%# | | ??? ############# K %%=[*# | | ??########## ####; % ; | | ??########## ####; ; ########## | | ???######### # ;###;###### ## # | | ??########## ### #### ###### ## # | | ?? / ### #### ###### ## # | | ??? # ###+####;###### ;# !! # | | ?? ? # # # ## ! # | | ?? """ ####### # ## # | | ???""" ####### # ## = # | | ???""" ####### # ## # | | ??? ####### # ######+### | | ???? ####### !! # | | ???? ####### + | | ???? + ! # | | ????###+## ####### # | | ????? # ####### # ###### #### | | ????? # ####### # ###### #### | | ????? # ########+############ ###### #### | | ??????? # ######## ##### ###### #### | +----------------------------------------------------+ Best States ------------- Heat Dissipation 69 Coolant Potential 100 Energy Generation 55 Energy Capacity 700 Matter Stores 300 Matter Capacity 600 Sight Range 16 Robot Scan Range 18 Terrain Scan Range 20 Terrain Scan Density 1010 Jamming Range 16 Cloak Strength 4 Armor Coverage 1200 Resistance: KI 30 Resistance: TH 30 Resistance: EM 25 Weapon Cycling 30 Evasion (%) 55 Recoil Reduction 6 Kinecelleration 40 Salvage Targeting 2 Offensive Hacking 36 Defensive Hacking 14 Authchip Count 1 Item Schematics ----------------- Hcp. Storage Unit | -10/Materials | Hacked Huge Storage Unit | -10/Materials | Hacked Machine Analyzer | -9/Materials | Scanalyzed Signal Interpreter | -9/Materials | Scanalyzed Sensor Array | -9/Materials | Scanalyzed Combat Drone Bay | -7/Data Miner | Free Lgt. Regenerative Plating | -7/Data Miner | Free Biomechanical Wings | -7/Data Miner | Free Exp. Targeting Computer | -7/Data Miner | Free Prc. Rocket Launcher | -7/Data Miner | Free Antigrav System | -7/Data Miner | Free Imp. Kinecellerator | -7/Data Miner | Free Enh. Gauss Cannon | -7/Data Miner | Free Lgt. Fission Core | -7/Data Miner | Free Imp. Remote Datajack | -7/Data Miner | Free Adv. Medium Treads | -7/Data Miner | Free Adv. Thermal Shield | -7/Data Miner | Free Arm. Medium Treads | -4/Factory | Scanalyzed Adv. KE Penetrator | -4/Factory | Scanalyzed Assault Drone Bay | -4/Zhirov | Free Exp. Heat Sink | -4/Zhirov | Free Exp. Optical Array | -4/Zhirov | Free Imp. Arc Thrower | -4/Zhirov | Free Exp. Signal Interpreter | -3/Testing | Hacked Robot Schematics ------------------ A-15 Conveyor | -7/Data Miner | Free S-27 Virus | -7/Data Miner | Free L-41 Fighter | -7/Data Miner | Free B-48 Gladiator | -7/Data Miner | Free H-66 Slayer | -7/Data Miner | Free Fabricated ------------ Exp. Signal Interpreter | x1 | -3/Testing | Authchip Alien Tech Used ----------------- Integrated Dissipator Transdimensional Reconstructor Achievements -------------- None Challenges ------------ None Game ------ Seed WeaponDrainedRail Manual? 0 Play Time 07:46:39 Cumulative 1298.3 hours Start 2022.05.01 @ 12:20:22 End 2022.05.10 @ 20:25:34 Sessions 41 Manual Loads 0 Difficulty Rogue Special Mode None Game No. 358 Rogue 358 Adventurer 0 Explorer 0 Win Type - Total 44 Types 27/6/7/3/0/0/0/1/0 Lore% 81 Gallery% 84 Achievement% 73 Wizard Run 0 Options --------- ASCII 0 Keyboard 1 Movement Numpad Keybinds 0 Fullscreen 1 Font 24/Crisp Map View 76x50 Tactical HUD 1 Map Filters NONE Filters NONE Steam 1 RUN: decfdbff-5733-4c4f-8dcb-d1366aad7a30